Cogmind - Beta 11.1 @@@ ROGUE MODE // 2022.04.30 @ 08:47:39 Player: ktur Result: Destroyed by H-66 Slayer with Heavy Assault Rifle Performance ------------- Evolutions (5) 2500 Regions Visited (12) 2400 Robots Destroyed (169) 845 Value Destroyed (6684) 6684 Prototype IDs (35) 700 Alien Tech Used (0) 0 Bonus (1574) 1574 TOTAL SCORE: 14703 Bonus ------- High Alert Combat Kills 1012 Follower Combat Kills 275 Aligned with FarCom 300 Met Data Miner 300 Friendly Fire -313 Cogmind --------- Core Integrity 0/1000 Matter 291/300 Energy 600/600 System Corruption 20% Temperature Cool (1) Movement Flying (40) Location -5/Factory Parts ------- > --- POWER (1) -------- (None) > --- PROPULSION (4) --- Nuclear Pulse Array > --- UTILITY (8) ------ Medium Storage Unit Advanced Energy Well Advanced Terrain Scan Processor Experimental Targeting Computer Improved Hacking Suite > --- WEAPON (4) ------- (None) > --- INVENTORY (10) --- Antimatter Reactor Improved Kinecellerator XL Autogun Array AWS/Autocannon Heavy Missile Launcher Peak State ------------ > --- POWER ------------ Light Antimatter Reactor > --- PROPULSION ------- Carbon-fiber Leg Carbon-fiber Leg Flexi-carbon Leg Flexi-carbon Leg > --- UTILITY ---------- Advanced Cooling System High-capacity Storage Unit Enhanced Optical Array Advanced Signal Interpreter Experimental Targeting Computer Experimental Targeting Computer Improved Particle Charger Layered Light Armor Plating > --- WEAPON ----------- XL Autogun Array > --- INVENTORY -------- Light Fission Core Antimatter Reactor Medium Treads Armored Medium Treads Energy Well Advanced Energy Well High-capacity Matter Pod Advanced Terrain Scan Processor Transmission Jammer Hacking Suite Authchip [Device] Enhanced Gauss Cannon AWS/Autocannon Heavy Missile Launcher [Rating: 106] Favorites ----------- Power Improved Ion Engine Engine Improved Ion Engine Power Core Light Fission Core Reactor Antimatter Reactor Propulsion Light Treads Treads Light Treads Leg Enhanced Flexi-carbon Leg Flight Unit Nuclear Pulse Array Utility High-capacity Storage Unit Device Improved Sensor Array Storage High-capacity Storage Unit Processor Experimental Targeting Computer Hackware Hacking Suite Protection Improved Medium Armor Plating Weapon Gauss Rifle Energy Gun Heavy Laser Energy Cannon Cooled Plasma Cannon Ballistic Gun Gauss Rifle Ballistic Cannon Magnetic Acceleration Cannon Launcher Advanced EMP Blaster Build | -11 -10 -10 -10 -9 -8 -7 -7 -7 -7 -6 -6 -5 ------- Run | Scr Mat Min Exi Min Mat Fac Low Low Dat Pro Fac Fac Slots Evolved 10 | . . . . . 4 2 . . . . 2 2 Power . | . . . . . . . . . . . . . Propulsion 2 | . . . . . 1 1 . . . . . . Utility 6 | . . . . . 3 1 . . . . 1 1 Weapon 2 | . . . . . . . . . . . 1 1 Parts Attached 201 | 6 1 6 2 . 14 14 7 13 13 11 18 96 Power 19 | 1 . 1 . . . 1 . 1 2 1 1 11 Engine 9 | 1 . 1 . . . 1 . 1 1 . 1 3 Core 3 | . . . . . . . . . . . . 3 Reactor 7 | . . . . . . . . . 1 1 . 5 Propulsion 53 | 2 . . 1 . 4 3 . 4 5 1 1 32 Treads 31 | 2 . . 1 . 4 3 . 4 1 . . 16 Leg 21 | . . . . . . . . . 4 1 1 15 Wheel . | . . . . . . . . . . . . . Hover . | . . . . . . . . . . . . . Flight 1 | . . . . . . . . . . . . 1 Utility 65 | 1 1 1 1 . 5 7 3 4 3 6 8 25 Device 21 | . . 1 . . . 1 1 1 1 1 3 12 Storage 7 | 1 1 . . . 1 1 . . . . . 3 Processor 14 | . . . 1 . 2 1 1 . . 1 5 3 Hackware 3 | . . . . . . 1 . . . . . 2 Protection 20 | . . . . . 2 3 1 3 2 4 . 5 Artifact . | . . . . . . . . . . . . . Weapon 64 | 2 . 4 . . 5 3 4 4 3 3 8 28 Energy Gun 17 | 1 . 3 . . . . . . . . 1 12 Energy Cannon 13 | . . . . . . 1 2 2 2 1 5 . Ballistic Gun 20 | 1 . 1 . . 4 1 . 1 1 . . 11 Ballistic Cannon 4 | . . . . . . . . . . . 2 2 Launcher 10 | . . . . . 1 1 2 1 . 2 . 3 Special Weapon . | . . . . . . . . . . . . . Impact Weapon . | . . . . . . . . . . . . . Slashing Weapon . | . . . . . . . . . . . . . Piercing Weapon . | . . . . . . . . . . . . . Special Melee Weapon . | . . . . . . . . . . . . . Unidentified Prototypes 8 | . . . . . 1 1 . . 2 . 2 2 Corrupted Parts 13 | . . . . . . . 1 1 7 1 . 3 System Corruption 79 | . . . . . . . 10 10 36 7 . 16 Parts Lost 64 | . . 1 . . . . 2 3 12 7 1 38 Power 10 | . . . . . . . . . 2 1 1 6 Propulsion 16 | . . . . . . . . 1 4 1 . 10 Utility 21 | . . . . . . . 2 2 3 4 . 10 Weapon 17 | . . 1 . . . . . . 3 1 . 12 Highest Loss Streak 14 | . . 1 . . . . 1 2 12 5 1 14 To Critical Strikes 1 | . . . . . . . . . . . . 1 Average Slot Usage (%) 92 | . 85 94 100 100 96 98 91 93 78 88 96 88 Engine 7 | . 14 14 14 14 9 7 7 7 1 . 3 2 Treads 19 | . 28 28 28 28 27 30 30 29 6 . . 8 Leg 5 | . . . . . . . . . 14 28 26 9 Device 5 | . . 9 8 . . 2 6 5 10 5 8 7 Storage 9 | . 14 14 14 14 16 11 7 7 7 7 6 5 Processor 12 | . . . 5 14 16 11 14 7 7 10 22 22 Hackware 1 | . . . . . . 4 . . . . . 2 Protection 6 | . . . . . 8 12 7 17 9 14 6 4 Energy Gun 5 | . 14 13 14 14 . . . . . . . 6 Energy Cannon 3 | . . . . . . 2 3 5 5 6 16 5 Ballistic Gun 9 | . 14 14 14 14 17 12 7 7 6 3 . 5 Naked Turns . | . . . . . . . . . . . . . Heaviest Build 122 | 14 29 33 33 32 43 82 90 95 80 82 91 122 Greatest Support 120 | 40 40 40 40 40 66 94 94 98 96 112 102 120 Greatest Overweight (x) 25 | 4 . . . . . . . 1 2 . . 25 Average Overweight (x) . | . . . . . . . . . . . . . Largest Inventory Capacity 20 | 8 15 15 15 15 15 20 20 20 20 20 20 20 Average Capacity 17 | 7 11 15 15 15 15 17 20 20 20 20 20 19 Most Carried 20 | 6 15 15 15 15 15 20 20 20 20 20 20 20 Average Carried 16 | 3 9 14 14 15 14 17 19 19 18 18 19 18 Final Capacity 20 | 8 15 15 15 15 15 20 20 20 20 20 20 10 Final Carried 20 | 6 15 15 15 15 15 20 20 20 20 16 20 10 Class Distribution -------------------- 58% | Mutant 22% | Scavenger-Mutant 11% | Scavenger-Gunner 4% | Skirmisher Dominant Class ---------------- Mutant | -10/Materials Mutant | -10/Mines Mutant | -10/Exiles Mutant | -9/Mines Mutant | -8/Materials Scavenger-Mutant | -7/Factory Mutant | -7/Lower Caves Mutant | -7/Lower Caves Scavenger-Mutant | -7/Data Miner Scavenger-Mutant | -6/Proximity Caves Scavenger-Skirmisher | -6/Factory Scavenger-Gunner | -5/Factory Resources | -11 -10 -10 -10 -9 -8 -7 -7 -7 -7 -6 -6 -5 ----------- Run | Scr Mat Min Exi Min Mat Fac Low Low Dat Pro Fac Fac Matter Collected 4506 | 155 439 83 . 60 438 351 264 353 180 200 298 1685 Remotely . | . . . . . . . . . . . . . Salvage Created 7618 | . 418 152 . 44 843 613 608 655 501 58 317 3409 Parts 355 | . 29 14 . . 41 43 21 22 17 5 11 152 Haulers Intercepted 8 | . 2 . . . 3 1 . . . . 1 1 Recyclers Shooed 9 | . 1 . . . . . . . . . 1 7 Parts Field Recycled . | . . . . . . . . . . . . . Retrieved Matter . | . . . . . . . . . . . . . Parts Self-Destructed 32 | . . . . . . . 4 24 . 4 . . Prevented 12 | . . . . . . . 7 5 . . . . Kills | -11 -10 -10 -10 -9 -8 -7 -7 -7 -7 -6 -6 -5 ------- Run | Scr Mat Min Exi Min Mat Fac Low Low Dat Pro Fac Fac Combat Hostiles Destroyed 130 | . 9 5 . 5 6 9 10 11 4 4 4 63 Melee 1 | . . . . . . . . . . . . 1 Guns 72 | . 9 5 . 5 6 5 1 5 1 . . 35 Cannons 23 | . . . . . . 1 3 1 . 1 4 13 AOE 25 | . . . . . . 3 4 3 1 3 . 11 Classes Destroyed 20 | . 7 . . 1 3 2 2 2 . 1 . 2 Worker 9 | . 2 . . . 1 4 . . . . . 2 Builder 7 | . 1 1 . . 1 . . . . . . 4 Tunneler 1 | . . . . . . 1 . . . . . . Hauler 8 | . 2 . . . 3 1 . . . . 1 1 Recycler 7 | . . . . . 3 3 . . . . . 1 Operator 5 | . 1 . . . 2 . . . . . 1 1 Watcher 6 | . 1 . . . 3 1 . . . . . 1 Swarmer 29 | . 5 2 . . . 3 . . . 3 . 16 Grunt 42 | . 4 3 . . 4 3 4 5 . . 1 18 Brawler 5 | . . . . . . . . 2 1 . . 2 Duelist 7 | . . . . . . . . 2 . . . 5 Protector 2 | . . . . . . . . . . . . 2 Sentry 7 | . . . . . 1 . 1 1 . . 1 3 Hunter 11 | . . . . . 1 . . . . . . 10 Programmer 10 | . . . . . . 3 . . . . 2 5 Heavy 1 | . . . . . . . . . . . . 1 Behemoth 2 | . . . . . . . . . . 1 . 1 Enhanced Grunt 4 | . . . . . . . . . 4 . . . Master Thief 1 | . . . . . . . 1 . . . . . Assembled 5 | . . . . 5 . . . . . . . . Thug 1 | . . . . . . . 1 . . . . . Savage 3 | . . . . . . . 3 . . . . . Mutant 1 | . . . . . . . . 1 . . . . Best Kill Streak 11 | . 3 2 . 2 3 9 4 4 3 3 1 11 Combat Bots Only 5 | . 3 2 . 2 2 4 4 4 3 3 1 5 Max Kills in Single Turn 5 | . 2 1 . 1 1 4 2 1 1 1 1 5 Gunslinging 1 | . . . . . . . . . . . . 1 Exploded 4 | . . . . . . 3 2 1 1 1 . 4 Melee 1 | . . . . . . . . . . . . 1 Uniques/NPCs Destroyed . | . . . . . . . . . . . . . Combat | -11 -10 -10 -10 -9 -8 -7 -7 -7 -7 -6 -6 -5 -------- Run | Scr Mat Min Exi Min Mat Fac Low Low Dat Pro Fac Fac Damage Taken 12903 | . 249 222 . 103 172 547 340 1600 1588 1350 326 6406 Core 1804 | . 31 27 . . 52 34 15 45 341 218 37 1004 Absorbed by Shields 381 | . . . . . . . 84 137 . . . 160 Core Remaining (%) 73 | 100 . . . 76 90 . . . . 6 95 . Volleys Fired 443 | . 42 12 . 13 45 35 27 50 16 35 22 146 Largest 4 | . 2 2 . 2 2 2 2 2 1 1 3 4 Hottest 253 | . 70 76 . 76 51 58 58 118 90 90 191 253 Shots Fired 876 | . 83 23 . 26 90 68 37 73 16 33 40 387 Gun 625 | . 83 23 . 26 90 55 12 39 5 3 . 289 Cannon 205 | . . . . . . 11 10 29 2 24 40 89 Launcher 46 | . . . . . . 2 15 5 9 6 . 9 Special . | . . . . . . . . . . . . . Kinetic 433 | . 42 12 . 13 90 55 12 39 5 3 12 150 Thermal 396 | . 41 11 . 13 . 11 10 29 2 24 28 227 Explosive 15 | . . . . . . . . . . 6 . 9 Electromagnetic 32 | . . . . . . 2 15 5 9 . . 1 Robot Hit Streak 36 | . 7 10 . 7 12 9 15 16 7 9 9 36 Robot Miss Streak 5 | . 4 2 . 3 5 4 2 3 3 2 1 4 Penetration Max 1 | . . . . . . 1 . 1 . . . 1 Secondary Targets 9 | . . . . . 2 . . . . . . 7 Max Gunslinging Chain 1 | . . . . . 1 . . . . . . 1 Autonomous 12 | . . . . . . . . . . . . 12 Shots Hit Robots 603 | . 49 15 . 16 62 44 24 51 7 19 20 296 Core Hits 316 | . 24 9 . 8 31 25 16 22 14 7 9 151 Critical Kills 1 | . . . . . . . . . . . . 1 Critical Parts Destroyed 2 | . . . . . 1 1 . . . . . . Critical Strikes 20 | . . 2 . 1 1 1 . . . . . 15 Burn 10 | . . 2 . 1 . . . . . . . 7 Destroy 3 | . . . . . 1 1 . . . . . 1 Blast 7 | . . . . . . . . . . . . 7 Melee Attacks . | . . . . . . . . . . . . . Impact . | . . . . . . . . . . . . . Slashing . | . . . . . . . . . . . . . Piercing . | . . . . . . . . . . . . . Sneak Attacks . | . . . . . . . . . . . . . Combat Hostiles . | . . . . . . . . . . . . . Follow-up Attacks . | . . . . . . . . . . . . . Damage Inflicted 18910 | . 627 230 . 220 1035 1805 1023 1652 705 1132 653 9828 Guns 8644 | . 627 204 . 220 1030 733 153 672 85 40 . 4880 Cannons 5480 | . . . . . . 209 130 642 55 729 653 3062 Explosions 4506 | . . . . . . 815 740 326 565 363 . 1697 Melee . | . . . . . . . . . . . . . Ramming 280 | . . 26 . . 5 48 . 12 . . . 189 Kinetic 6722 | . 341 105 . 73 1030 733 153 672 85 40 218 3272 Thermal 8227 | . 286 99 . 147 . 931 171 719 55 729 435 4655 Explosive 2060 | . . . . . . . . . . 363 . 1697 Electromagnetic 1621 | . . . . . . 93 699 249 565 . . 15 Impact . | . . . . . . . . . . . . . Slashing . | . . . . . . . . . . . . . Piercing . | . . . . . . . . . . . . . Highest Corruption 70 | . . . . . . 2 17 27 63 70 6 20 Average Corruption 15 | . . . . . . 1 11 18 48 66 4 8 Corruption Purged . | . . . . . . . . . . . . . Corruption Blocked . | . . . . . . . . . . . . . Effects 213 | . . . . . . 7 28 41 15 34 11 77 Message Errors 50 | . . . . . . 1 10 13 1 6 3 16 Matter Fused 57 | . . . . . . 3 9 9 5 9 2 20 Heat Flow Errors 18 | . . . . . . . 3 2 . 6 . 7 Energy Discharges 23 | . . . . . . 1 2 3 3 4 . 10 Parts Rejected 3 | . . . . . . . . 1 . 1 . 1 Data Loss (minor) 26 | . . . . . . 2 3 4 2 3 3 9 Data Loss (major) 8 | . . . . . . . . 2 . 1 1 4 Misfires 9 | . . . . . . . . 2 1 1 1 4 Alerts 6 | . . . . . . . 1 2 1 . . 2 Misdirections 2 | . . . . . . . . . 1 . . 1 Weapon Failures 11 | . . . . . . . . 3 1 3 1 3 Overload Shots 14 | . . . . . . . . 2 1 . . 11 Effects 1 | . . . . . . . . 1 . . . . Energy Bleed 1 | . . . . . . . . 1 . . . . Overflow Damage 304 | . . . . . . 84 2 4 11 . 35 168 Projectiles 175 | . . . . . . . . 3 . . 35 137 Explosions 128 | . . . . . . 84 2 . 11 . . 31 Melee 1 | . . . . . . . . 1 . . . . Knockbacks 9 | . . . . . . . . . . . . 9 Impact 3 | . . . . . . . . . . . . 3 Kinetic 6 | . . . . . . . . . . . . 6 Secondary . | . . . . . . . . . . . . . Self-Inflicted Damage 393 | . . . . . . 36 11 . 157 11 . 178 Shots 18 | . . . . . . 2 1 . 9 1 . 5 Rammed 17 | . 1 2 . . 1 4 . 1 . . . 8 Targets Rammed 29 | . 1 3 . . 2 5 . 1 . . . 17 Kicked 7 | . . . . . . . . . . . . 7 Crushed 5 | . . 1 . . 1 1 . . . . . 2 Highest Temperature 391 | . 84 81 . 108 24 33 273 345 . 370 337 391 Average Temperature 89 | . 28 38 . 43 9 16 55 172 . 164 94 71 Received Heat Transfer 2030 | . 78 87 . 60 99 117 98 383 . 168 84 856 Effects 15 | . . . . . . . 3 7 . 3 . 2 Shutdowns 2 | . . . . . . . . . . 1 . 1 Energy Bleed 2 | . . . . . . . . 2 . . . . Interference 8 | . . . . . . . 3 4 . 1 . . Short Circuit 1 | . . . . . . . . . . . . 1 Damage (minor) 2 | . . . . . . . . 1 . 1 . . Siege Activations . | . . . . . . . . . . . . . Robots Corrupted 6 | . . . . . . . 2 1 3 . . . Combat Hostiles 5 | . . . . . . . 2 1 2 . . . Parts Fried 7 | . . . . . . 1 1 . 5 . . . Impact Corruptions 1 | . . . . . . . . 1 . . . . Robots Melted 4 | . . . . . . . . 1 . . . 3 Combat Hostiles 4 | . . . . . . . . 1 . . . 3 Parts Melted 35 | . 1 1 . . . . . 1 . . 1 31 Heat Transferred 11912 | . 851 407 . 444 . 809 235 940 87 . 585 7554 Parts Sabotaged 2 | . . . . . . . . . . . . 2 Parts Stolen 1 | . . . . . . . 1 . . . . . Parts Stripped . | . . . . . . . . . . . . . Power Chain Reactions 5 | . . . . . . 1 1 1 2 . . . Missiles Intercepted . | . . . . . . . . . . . . . Alert | -11 -10 -10 -10 -9 -8 -7 -7 -7 -7 -6 -6 -5 ------- Run | Scr Mat Min Exi Min Mat Fac Low Low Dat Pro Fac Fac Peak Influence 1062 | . 183 106 . . 231 402 . . . . 219 1062 Initial 107 | . . 13 . . . . . . . . . 107 Average 233 | . 73 43 . . 88 159 . . . . 47 581 Maximum Alert Level 3 | . . . . . 1 2 . . . . 1 3 Low Security (%) 68 | 100 100 100 . 100 89 52 . . . . 98 23 Level 1 10 | . . . . . 10 45 . . . . 1 9 Level 2 5 | . . . . . . 2 . . . . . 15 Level 3 16 | . . . . . . . . . . . . 51 Level 4 . | . . . . . . . . . . . . . Level 5 . | . . . . . . . . . . . . . High Security . | . . . . . . . . . . . . . Max Security . | . . . . . . . . . . . . . Squads Dispatched 31 | . 1 1 . . 2 3 . 1 . . 4 19 Investigation 6 | . 1 1 . . 1 1 . . . . . 2 Extermination 8 | . . . . . . 2 . . . . 3 3 Reinforcement 12 | . . . . . 1 . . . . . 1 10 Assault 5 | . . . . . . . . 1 . . . 4 Garrison . | . . . . . . . . . . . . . Intercept . | . . . . . . . . . . . . . Searches Triggered . | . . . . . . . . . . . . . Construction Impeded 3 | . . . . . . . . . . . . 3 Haulers Reinforced 1 | . . . . . . . . . . . 1 . Active Scanning Responses . | . . . . . . . . . . . . . Cargo Convoy Interrupts . | . . . . . . . . . . . . . Stealth | -11 -10 -10 -10 -9 -8 -7 -7 -7 -7 -6 -6 -5 --------- Run | Scr Mat Min Exi Min Mat Fac Low Low Dat Pro Fac Fac Distress Signals 9 | . 3 . . . 1 . . . . . . 5 Communications Jammed 6 | . . . . . . . . . . . . 6 Distress Signals 6 | . . . . . . . . . . . . 6 Times Spotted 218 | . 18 10 . 5 17 14 12 13 7 4 10 108 Peak Tracking Total 12 | . 6 3 . 2 6 3 4 11 4 3 5 12 Tactical Retreats 11 | . 1 . . . . 1 . 2 . . 1 6 Traps | -11 -10 -10 -10 -9 -8 -7 -7 -7 -7 -6 -6 -5 ------- Run | Scr Mat Min Exi Min Mat Fac Low Low Dat Pro Fac Fac Traps Triggered 10 | . . . . . . 2 . . . . 1 7 Indirectly 2 | . . . . . . 2 . . . . . . Trap Hack Attempts . | . . . . . . . . . . . . . Triggered . | . . . . . . . . . . . . . Disarmed . | . . . . . . . . . . . . . Reprogrammed . | . . . . . . . . . . . . . Reused . | . . . . . . . . . . . . . Traps Extracted . | . . . . . . . . . . . . . Installed . | . . . . . . . . . . . . . Triggered . | . . . . . . . . . . . . . Machines | -11 -10 -10 -10 -9 -8 -7 -7 -7 -7 -6 -6 -5 ---------- Run | Scr Mat Min Exi Min Mat Fac Low Low Dat Pro Fac Fac Machines Disabled 22 | . 1 . . . 3 12 . 2 1 . 2 1 Max in Single Turn 12 | . 1 . . . 1 12 . 1 1 . 1 1 Garrison Access 2 | . . . . . . . . . . . . 2 Machines Sabotaged . | . . . . . . . . . . . . . Garrisons Compromised . | . . . . . . . . . . . . . Overloaded Fab Kills . | . . . . . . . . . . . . . Hacking | -11 -10 -10 -10 -9 -8 -7 -7 -7 -7 -6 -6 -5 --------- Run | Scr Mat Min Exi Min Mat Fac Low Low Dat Pro Fac Fac Machines Accessed 31 | . 9 1 2 . 3 3 1 . . . 5 7 Terminals 15 | . 7 . . . 2 . . . . . 1 5 Fabricators 3 | . . . . . . 1 . . . . 2 . Repair Stations 1 | . . . . . . . . . . . . 1 Recycling Units 5 | . 2 . . . 1 1 . . . . 1 . Scanalyzers 1 | . . . . . . 1 . . . . . . Garrison Access 2 | . . . . . . . . . . . 1 1 Total Hacks 67 | . 21 1 2 . 10 7 1 . . . 7 18 Successful 27 | . 8 1 2 . 3 5 1 . . . 2 5 Failed 39 | . 12 . . . 7 2 . . . . 5 13 Catastrophic 8 | . 1 . . . . . . . . . 2 5 Database Lockouts 1 | . 1 . . . . . . . . . . . Manual 33 | . 14 . 1 . 5 1 . . . . . 12 Terminals 42 | . 19 . . . 5 . . . . . 2 16 Fabricators 4 | . . . . . . 2 . . . . 2 . Repair Stations 1 | . . . . . . . . . . . . 1 Recycling Units 10 | . 2 . . . 5 1 . . . . 2 . Scanalyzers 4 | . . . . . . 4 . . . . . . Garrison Access 2 | . . . . . . . . . . . 1 1 Terminal Hacks 17 | . 5 1 2 . 3 . 1 . . . 1 4 Record 1 | . . . 1 . . . . . . . . . Part Schematic 1 | . 1 . . . . . . . . . . . Robot Analysis 1 | . 1 . . . . . . . . . . . Prototype ID Bank 3 | . 3 . . . . . . . . . . . Open Door 2 | . . 1 . . . . 1 . . . . . Level Access Points 1 | . . . . . . . . . . . . 1 Branch Access Points 1 | . . . . . . . . . . . . 1 Unreport Threat 5 | . . . . . 3 . . . . . . 2 Locate Traps 1 | . . . . . . . . . . . 1 . EX-Prototype ID Bank 1 | . . . 1 . . . . . . . . . Fabricator Hacks 1 | . . . . . . 1 . . . . . . Load Schematic 1 | . . . . . . 1 . . . . . . Repair Station Hacks . | . . . . . . . . . . . . . Recycling Unit Hacks 4 | . 2 . . . . 1 . . . . 1 . Retrieve Components 4 | . 2 . . . . 1 . . . . 1 . Scanalyzer 2 | . . . . . . 2 . . . . . . Insert Component 1 | . . . . . . 1 . . . . . . Analyze 1 | . . . . . . 1 . . . . . . Garrison Access Hacks 1 | . . . . . . . . . . . . 1 Seal Access 1 | . . . . . . . . . . . . 1 Unauthorized Hacks 2 | . 1 . . . . 1 . . . . . . Terminals 1 | . 1 . . . . . . . . . . . Operators 1 | . 1 . . . . . . . . . . . Fabricators 1 | . . . . . . 1 . . . . . . Recompile 1 | . . . . . . 1 . . . . . . Repair Stations . | . . . . . . . . . . . . . Recycling Units . | . . . . . . . . . . . . . Scanalyzers . | . . . . . . . . . . . . . Garrison Access . | . . . . . . . . . . . . . Data Cores Recovered 3 | . 1 . . . 1 . . . . . 1 . Used . | . . . . . . . . . . . . . Hacking Detections 21 | . 7 . . . 3 1 . . . . 4 6 Full Trace Events 3 | . 1 . . . 1 . . . . . . 1 Feedback Events . | . . . . . . . . . . . . . Feedback Blocked . | . . . . . . . . . . . . . Robot Schematics Acquired . | . . . . . . . . . . . . . Robots Built . | . . . . . . . . . . . . . Authchips . | . . . . . . . . . . . . . Time . | . . . . . . . . . . . . . Total Robot Build Rating . | . . . . . . . . . . . . . Part Schematics Acquired 2 | . 1 . . . . 1 . . . . . . Parts Built . | . . . . . . . . . . . . . Authchips . | . . . . . . . . . . . . . Time . | . . . . . . . . . . . . . Total Part Build Rating . | . . . . . . . . . . . . . Parts Repaired . | . . . . . . . . . . . . . Time . | . . . . . . . . . . . . . Parts Recycled . | . . . . . . . . . . . . . Recycled Matter . | . . . . . . . . . . . . . Retrieved Matter . | . . . . . . . . . . . . . Retrieved Components 23 | . 13 . . . . 10 . . . . . . Parts Scanalyzed 1 | . . . . . . 1 . . . . . . Part Schematics Acquired 1 | . . . . . . 1 . . . . . . Parts Damaged . | . . . . . . . . . . . . . Bothacking | -11 -10 -10 -10 -9 -8 -7 -7 -7 -7 -6 -6 -5 ------------ Run | Scr Mat Min Exi Min Mat Fac Low Low Dat Pro Fac Fac Used RIF Installer . | . . . . . . . . . . . . . Robots Hacked . | . . . . . . . . . . . . . Non-combat . | . . . . . . . . . . . . . Combat . | . . . . . . . . . . . . . Robot Hacks Applied . | . . . . . . . . . . . . . Relay Couplers Released 2 | . . . . . . . . . . . . 2 Machine Destruction 2 | . . . . . . . . . . . . 2 Fabnet Peak Effective % . | . . . . . . . . . . . . . Robots Rewired 5 | . . . . . . . . 5 . . . . Allies Hacked . | . . . . . . . . . . . . . Hacks Repelled . | . . . . . . . . . . . . . Allies | -11 -10 -10 -10 -9 -8 -7 -7 -7 -7 -6 -6 -5 -------- Run | Scr Mat Min Exi Min Mat Fac Low Low Dat Pro Fac Fac Total Allies 11 | . . 1 . 2 . 3 . 5 . . . . Largest Group 3 | . . 1 1 2 2 3 2 3 2 . . . Highest-Rated Group 93 | . . 31 31 46 46 93 62 93 52 . . . Highest-Rated Ally 32 | . . 31 31 31 31 31 31 32 32 . . . Total Orders . | . . . . . . . . . . . . . Ally Attacks 117 | . . 7 . . 25 44 15 18 8 . . . Total Damage 1739 | . . 126 . . 379 514 210 305 205 . . . Kills 14 | . . 3 . . 4 4 1 2 . . . . Allies Corrupted 3 | . . . . . . . 1 1 1 . . . Allies Melted . | . . . . . . . . . . . . . Intel | -11 -10 -10 -10 -9 -8 -7 -7 -7 -7 -6 -6 -5 ------- Run | Scr Mat Min Exi Min Mat Fac Low Low Dat Pro Fac Fac Robot Analysis Total 1 | . 1 . . . . . . . . . . . Derelict Logs Recovered 10 | . . 3 . 2 . . 1 1 . 3 . . Drone Launches . | . . . . . . . . . . . . . Drone Recoveries . | . . . . . . . . . . . . . Exploration | -11 -10 -10 -10 -9 -8 -7 -7 -7 -7 -6 -6 -5 ------------- Run | Scr Mat Min Exi Min Mat Fac Low Low Dat Pro Fac Fac Turns Passed 11466 | 92 1194 1096 410 800 832 1175 670 876 252 547 763 2759 Spaces Moved 6343 | 52 645 641 252 475 426 658 396 416 127 357 531 1367 Core 29 | 16 . . . . . . . . . . . 13 Treads 4570 | 36 645 641 252 475 426 658 396 416 32 . . 593 Legs 1680 | . . . . . . . . . 95 357 531 697 Wheels . | . . . . . . . . . . . . . Hover . | . . . . . . . . . . . . . Flight 64 | . . . . . . . . . . . . 64 Fastest Speed 40 | 50 160 160 160 160 145 145 148 148 120 120 120 40 Average Speed 149 | 150 160 160 160 160 152 146 148 155 150 120 120 151 Slowest Speed 1300 | 250 160 160 160 160 160 148 148 238 320 120 122 1300 Overloaded Moves . | . . . . . . . . . . . . . Propulsion Burnouts . | . . . . . . . . . . . . . Robots Hopped 2 | . . . . . . . . . . . . 2 Cave-ins Triggered . | . . . . . . . . . . . . . Exploration Rate (%) 58 | 4 100 99 60 99 34 22 60 68 75 68 13 53 Regions Visited 12 Branch Regions 7 Pre-discovered Areas 4 | . . 1 1 . . . . . . 2 . . Known Exits Taken 4 | . . . . . 1 1 . . . 1 1 . Unknown Exits Taken 8 | 1 1 1 1 1 . . 1 1 1 . . . Scrap Searched 15 | . . 1 . 1 . . 4 5 . 4 . . Spaces Dug 18 | . . . . . . . 1 . . 6 7 4 Terrain Destroyed 161 | . . . . . . 26 6 5 . 46 15 63 Melee . | . . . . . . . . . . . . . Projectile 47 | . . . . . . 1 2 2 . 5 15 22 AOE 113 | . . . . . . 25 4 3 . 41 . 40 Terrain Rammed . | . . . . . . . . . . . . . Walls Destroyed . | . . . . . . . . . . . . . Machines Disabled . | . . . . . . . . . . . . . Actions | -11 -10 -10 -10 -9 -8 -7 -7 -7 -7 -6 -6 -5 --------- Run | Scr Mat Min Exi Min Mat Fac Low Low Dat Pro Fac Fac Total 7574 | 63 728 691 262 489 527 802 442 569 168 433 617 1783 Wait 263 | . 18 15 . 2 11 60 4 10 6 27 21 89 Move 6327 | 51 644 640 251 474 425 657 395 415 126 356 530 1363 Hop 2 | . . . . . . . . . . . . 2 Pick Up 100 | 6 15 6 2 . 12 16 5 5 6 1 10 16 Fast Attach 101 | 6 1 4 . . 4 1 2 6 7 3 15 52 Attach 52 | . . . 2 . 4 4 1 4 6 5 1 25 Detach 11 | . . . . . . . . . . 1 . 10 Swap 48 | . . 2 . . 6 9 4 3 . 3 2 19 Drop 129 | . 7 9 7 . 18 15 4 6 1 2 16 44 Fire 443 | . 42 12 . 13 45 35 27 50 16 35 22 146 Melee . | . . . . . . . . . . . . . Ram . | . . . . . . . . . . . . . Kick 7 | . . . . . . . . . . . . 7 Crush 22 | . 1 3 . . 2 5 . 1 . . . 10 Escape Stasis . | . . . . . . . . . . . . . Rewire 69 | . . . . . . . . 69 . . . . Trap . | . . . . . . . . . . . . . Miscellaneous . | . . . . . . . . . . . . . Route ------- -11/Scrapyard -10/Materials (discovered 4 exits: [*Mat x3] / *Min) -10/Mines (discovered 3 exits: [*Mat x2] / *Exi) -10/Exiles -9/Mines (discovered 2 exits: *Mat x2) -8/Materials (discovered 2 exits: *Fac x2) -7/Factory -7/Lower Caves -7/Lower Caves (discovered 2 exits: *Fac / [*Dat]) -7/Data Miner -6/Proximity Caves -6/Factory (discovered 2 exits: *Fac / Low) -5/Factory (discovered 6 exits: *Fac x4 / *Upp x2) History --------- Turn | Location | Event 21 | -11/Scrapyard | Discovered new exit (range 16) 93 | -11/Scrapyard | Entered Materials 306 | -10/Materials | Build established: Mutant 436 | -10/Materials | Discovered new exit (range 8) 587 | -10/Materials | Discovered new exit (range 16) 600 | -10/Materials | Central database locked down 842 | -10/Materials | Discovered new exit (range 5) 1040 | -10/Materials | Discovered new exit (range 16) 1287 | -10/Materials | Entered Mines 1288 | -10/Mines | Learned location of Storage (-7) 1335 | -10/Mines | Deemed a non-threat by the Exiles lab entrance 1337 | -10/Mines | Discovered new exit (range 5) 1524 | -10/Mines | Found a hidden stash of uninstalled traps 1556 | -10/Mines | Discovered new exit (range 7) 1563 | -10/Mines | Received a Rocket Launcher from a helpful Derelict 1743 | -10/Mines | Joined a pair of Derelicts in attacking an 0b10 outpost 1855 | -10/Mines | Learned location of 1 exit from Materials 1921 | -10/Mines | Escorted by a lone wolf Derelict 2004 | -10/Mines | Learned 2 Materials zone layouts 2048 | -10/Mines | Learned Materials emergency access door positions 2092 | -10/Mines | Discovered new exit (range 7) 2148 | -10/Mines | Met a Derelict shopkeep closing up shop 2383 | -10/Mines | Entered Exiles 2383 | -10/Exiles | Accompanied by 1 ally 2423 | -10/Exiles | Met 8R-AWN 2449 | -10/Exiles | Met EX-HEX 2495 | -10/Exiles | Met EX-BIN 2527 | -10/Exiles | Learned location of Zion (-6) 2531 | -10/Exiles | Met EX-DEC 2575 | -10/Exiles | Aligned with FarCom system 2577 | -10/Exiles | Given EX-Vault access code 2615 | -10/Exiles | Opened EX-Vault 2632 | -10/Exiles | Found XL Autogun Array 2638 | -10/Exiles | Found AWS/Autocannon 2671 | -10/Exiles | Warned to stay clear of 0b10 Research branches 2778 | -10/Exiles | Discovered new exit (range 10) 2793 | -10/Exiles | Stole two prototypes: XL Autogun Array, AWS/Autocannon 2793 | -10/Exiles | Entered Mines 2794 | -9/Mines | Assembled infested the area 3071 | -9/Mines | Learned 2 Materials zone layouts 3346 | -9/Mines | Discovered new exit (range 7) 3381 | -9/Mines | Learned 2 Materials zone layouts 3549 | -9/Mines | Discovered new exit (range 7) 3593 | -9/Mines | Entered Materials 3593 | -8/Materials | Accompanied by 2 allies 3593 | -8/Materials | Evolved 4 slots: Propulsion x1, Utility x3 3594 | -8/Materials | Identified exit to Factory 3598 | -8/Materials | Led the pair of lost Derelicts to an unsafe place 4425 | -8/Materials | Entered Factory 4425 | -7/Factory | Evolved 2 slots: Propulsion x1, Utility x1 4427 | -7/Factory | FarCom data flow suspended 4742 | -7/Factory | Build established: Scavenger-Mutant 5543 | -7/Factory | Build established: Mutant 5543 | -7/Factory | Discovered new exit (range 14) 5589 | -7/Factory | Identified exit to Lower Caves 5600 | -7/Factory | Entered Lower Caves 5600 | -7/Lower Caves | Accompanied by 2 allies 5600 | -7/Lower Caves | Spotted YE-NA6(f) 5601 | -7/Lower Caves | Encountered a Master Thief 5606 | -7/Lower Caves | Destroyed YE-NA6(f) 5608 | -7/Lower Caves | Spotted MJ-ZOO(f) 5609 | -7/Lower Caves | Encountered a Master Thief 5613 | -7/Lower Caves | AWS/Autocannon stolen by Master Thief 5614 | -7/Lower Caves | Allies destroyed MJ-ZOO(f) 5677 | -7/Lower Caves | System corruption reached 10% 5964 | -7/Lower Caves | Encountered a Warlord checkpoint 6021 | -7/Lower Caves | Attracted the attention of an 0b10 checkpoint 6139 | -7/Lower Caves | Learned 12 Factory zone layouts 6193 | -7/Lower Caves | Discovered new exit (range 22) 6224 | -7/Lower Caves | Ambushed by wild Derelicts 6270 | -7/Lower Caves | Entered another Lower Caves area 6270 | -7/Lower Caves | Discovered new exit (range 16) 6468 | -7/Lower Caves | Attacked by a delusional Derelict stockpiling Unaware 6621 | -7/Lower Caves | Attracted the attention of an 0b10 checkpoint 6744 | -7/Lower Caves | Learned Factory stockpile data 6749 | -7/Lower Caves | Attracted the attention of an 0b10 outpost 7129 | -7/Lower Caves | Discovered new exit (range 8) 7146 | -7/Lower Caves | Entered Data Miner 7146 | -7/Data Miner | Accompanied by 2 allies 7146 | -7/Data Miner | Discovered new exit (range 6) 7168 | -7/Data Miner | Met Data Miner 7171 | -7/Data Miner | Data Conduit disabled 7207 | -7/Data Miner | Core integrity fell below 50% 7219 | -7/Data Miner | System corruption reached 30% 7250 | -7/Data Miner | Lost 12 parts (2p4n3u3w) 7302 | -7/Data Miner | Found Corrupted Prototype Device 7398 | -7/Data Miner | Entered Proximity Caves 7450 | -6/Proximity Caves | Learned location of 1 exit from Lower Caves 7492 | -6/Proximity Caves | Build established: Scavenger-Mutant 7530 | -6/Proximity Caves | Spotted B-75 Beast 7626 | -6/Proximity Caves | Core integrity fell below 20% 7697 | -6/Proximity Caves | Destroyed B-75 Beast 7719 | -6/Proximity Caves | Lost 5 parts (1n3u1w) 7936 | -6/Proximity Caves | Discovered new exit (range 10) 7943 | -6/Proximity Caves | Identified exit to Factory 7945 | -6/Proximity Caves | Entered Factory 7945 | -6/Factory | Evolved 2 slots: Utility x1, Weapon x1 7946 | -6/Factory | Identified exit to Lower Caves 8371 | -6/Factory | Found Prototype Processor 8371 | -6/Factory | Identified Exp. Targeting Computer 8378 | -6/Factory | Found Exp. Targeting Computer 8382 | -6/Factory | Found Exp. Targeting Computer 8468 | -6/Factory | Discovered new exit (range 13) 8498 | -6/Factory | Identified exit to Factory 8708 | -6/Factory | Entered another Factory area 8708 | -5/Factory | Evolved 2 slots: Utility x1, Weapon x1 8868 | -5/Factory | Identified Exp. Thermal Shield 9017 | -5/Factory | Build established: Mutant 9645 | -5/Factory | Lost 7 parts (1p3n1u2w) 9852 | -5/Factory | Lost 3 parts (1p2n) 10208 | -5/Factory | First assault squad dispatched 10253 | -5/Factory | Identified exit to Factory 10391 | -5/Factory | Build established: Scavenger-Gunner 10793 | -5/Factory | Lost 4 parts (1p1u2w) 10822 | -5/Factory | System corruption reached 10% 10883 | -5/Factory | Lost 5 parts (1p1n1u2w) 11024 | -5/Factory | Identified exit to Upper Caves 11224 | -5/Factory | Spotted B-75 Beast 11244 | -5/Factory | Core integrity fell below 50% 11293 | -5/Factory | Core integrity fell below 20% 11320 | -5/Factory | Destroyed B-75 Beast 11350 | -5/Factory | Lost 14 parts (1p4n5u4w) 11467 | -5/Factory | Destroyed by H-66 Slayer with Heavy Assault Rifle Last Messages --------------- 11442_ U-05 Engineer lays Concrete. 11444_ Dropped Hvy. Laser. 11444_ U-05 Engineer lays Concrete. 11444_ Dropped Field Laser. 11445_ Dropped Hcp. Matter Pod. 11446_ Extracted 200 matter. 11446_ Acquired 31 matter. 11450_ U-05 Engineer lays Concrete. 11450_ O-24 Administrator: "IFF HANDSHAKE FAILED. SECURING TERMINAL." 11451_ C-30 ARC bursts open, deploying its payload. 11451_ S-27 Virus unfolds itself. 11451_ U-05 Engineer lays Concrete. 11451_ Acquired 28 matter. 11452_ U-05 Engineer lays Concrete. 11456_ O-24 Administrator uses terminal to summon reinforcements. 11456_ ALERT: Hostiles spotted, dispatching reinforcements to Terminal F001. 11456_ O-24 Administrator locks terminal. 11459_ U-05 Engineer lays Concrete. 11466_ System corrupted: Matter fused (-9). Map ----- +----------------------------------------------------+ | | | | | | | | | | | | | | | | | | | | | | | | | | | | | | | | | | | | | | | ###########??????????????????????????????????????? | | ! ?????????????????????????????????????? | | ????????????????????????????????????? | | ! ???????????????????????????????????? | | ??????????????????????????????????? | | #################] ????????? | | """"""t/ @ >h ???